bitfinex/quotes_BTCUSD_20250108
["timestamp","ask_amount","ask_price","bid_price","bid_amount"]
[1736329774315,0.52273836,95873.0,95872.0,8.53e-05]
[1736329774572,0.52073836,95873.0,95872.0,8.53e-05]
[1736329775049,0.52273836,95873.0,95872.0,8.53e-05]
[1736329776460,0.52073836,95873.0,95872.0,8.53e-05]
[1736329777005,0.52273836,95873.0,95872.0,8.53e-05]
[1736329778350,0.52073836,95873.0,95872.0,8.53e-05]
[1736329779568,0.31225488,95873.0,95872.0,8.53e-05]
[1736329779741,0.31425488,95873.0,95872.0,8.53e-05]
[1736329780702,0.52286388,95873.0,95872.0,8.53e-05]
[1736329781042,0.52086388,95873.0,95872.0,8.53e-05]
[1736329781423,0.52286388,95873.0,95872.0,8.53e-05]
[1736329782735,0.52086388,95873.0,95872.0,8.53e-05]
[1736329783140,0.52286388,95873.0,95872.0,8.53e-05]
[1736329783698,0.52086388,95873.0,95872.0,8.53e-05]
[1736329783826,0.52286388,95873.0,95872.0,8.53e-05]
[1736329785986,0.52086388,95873.0,95872.0,8.53e-05]
[1736329786224,0.52286388,95873.0,95872.0,8.53e-05]
[1736329786801,0.52086388,95873.0,95872.0,8.53e-05]
[1736329787413,0.52286388,95873.0,95872.0,8.53e-05]
[1736329792213,0.52272527,95873.0,95872.0,8.53e-05]
[1736329792623,0.52072527,95873.0,95872.0,8.53e-05]
[1736329792781,0.52272527,95873.0,95872.0,8.53e-05]
[1736329793361,0.52072527,95873.0,95872.0,8.53e-05]
[1736329793792,0.52272527,95873.0,95872.0,8.53e-05]
[1736329795909,0.61400663,95873.0,95872.0,8.53e-05]
[1736329796750,0.61600663,95873.0,95872.0,8.53e-05]
[1736329796928,0.52272527,95873.0,95872.0,8.53e-05]
[1736329797248,0.61600663,95873.0,95872.0,8.53e-05]
[1736329797757,0.52272527,95873.0,95872.0,8.53e-05]
[1736329798370,0.61600663,95873.0,95872.0,8.53e-05]
[1736329798974,0.52272527,95873.0,95872.0,8.53e-05]
[1736329802501,0.52072527,95873.0,95872.0,8.53e-05]
[1736329802907,0.52272527,95873.0,95872.0,8.53e-05]
[1736329803632,0.52072527,95873.0,95872.0,8.53e-05]
[1736329804048,0.52272527,95873.0,95872.0,8.53e-05]
[1736329805448,0.49772527,95873.0,95872.0,8.53e-05]
[1736329805786,0.49972527,95873.0,95872.0,8.53e-05]
[1736329806200,0.49772527,95873.0,95872.0,8.53e-05]
[1736329806650,0.49972527,95873.0,95872.0,8.53e-05]
[1736329807101,0.49772527,95873.0,95872.0,8.53e-05]
[1736329807444,0.49972527,95873.0,95872.0,8.53e-05]
[1736329809048,0.49772527,95873.0,95872.0,8.53e-05]
[1736329809278,0.49972527,95873.0,95872.0,8.53e-05]
[1736329809653,0.49772527,95873.0,95872.0,8.53e-05]
[1736329810087,0.49972527,95873.0,95872.0,8.53e-05]
[1736329813520,0.36047039,95873.0,95872.0,0.01313088]
[1736329813822,0.210609,95873.0,95872.0,0.08973088]
[1736329815203,0.208609,95873.0,95872.0,0.08973088]
[1736329815604,0.210609,95873.0,95872.0,0.08973088]
[1736329816085,0.208609,95873.0,95872.0,0.08973088]
[1736329816430,0.210609,95873.0,95872.0,0.08973088]
[1736329817067,0.208609,95873.0,95872.0,0.08973088]
[1736329817681,0.208609,95873.0,95872.0,0.13713088]
[1736329818091,0.2086,95877.0,95873.0,0.0812]
[1736329818292,0.2086,95877.0,95875.0,0.0812]
[1736329818518,0.208589,95882.0,95877.0,0.0812]
[1736329819841,0.208589,95882.0,95874.0,0.01490837]
[1736329819842,0.208589,95882.0,95878.0,0.0474]
[1736329820034,0.208589,95882.0,95879.0,0.0812]
[1736329820239,0.417179,95882.0,95879.0,0.0812]
[1736329820433,0.419179,95882.0,95880.0,0.01435084]
[1736329820612,0.419179,95882.0,95879.0,0.0812]
[1736329820817,0.358594,95880.0,95879.0,0.054]
[1736329821043,0.002,95882.0,95872.0,0.07431319]
[1736329821249,0.208609,95873.0,95872.0,0.06126761]
[1736329821446,0.208609,95873.0,95872.0,0.08027142]
[1736329823136,0.210609,95873.0,95872.0,0.08027142]
[1736329823332,0.210609,95873.0,95872.0,0.06126761]
[1736329827086,0.22325791,95873.0,95872.0,0.00726761]
[1736329828723,0.22125791,95873.0,95872.0,0.00726761]
[1736329828923,0.22325791,95873.0,95872.0,0.00726761]
[1736329832721,0.37325791,95873.0,95872.0,0.00726761]
[1736329833283,0.50055767,95873.0,95872.0,0.00726761]
[1736329833546,0.60055767,95873.0,95872.0,0.00726761]
[1736329833699,0.50055767,95873.0,95872.0,0.00726761]
[1736329833904,0.60055767,95873.0,95872.0,0.00726761]
[1736329834527,0.50055767,95873.0,95872.0,0.00726761]
[1736329835131,0.60055767,95873.0,95872.0,0.00726761]
[1736329835575,0.59855767,95873.0,95872.0,0.00726761]
[1736329835986,0.60055767,95873.0,95872.0,0.00726761]
[1736329836837,0.59855767,95873.0,95872.0,0.00726761]
[1736329837179,0.60055767,95873.0,95872.0,0.00726761]
[1736329838515,0.59855767,95873.0,95872.0,0.00726761]
[1736329838730,0.60055767,95873.0,95872.0,0.00726761]
[1736329839114,0.50055767,95873.0,95872.0,0.00726761]
[1736329839349,0.60055767,95873.0,95872.0,0.00726761]
[1736329839586,0.59855767,95873.0,95872.0,0.00726761]
[1736329839994,0.60055767,95873.0,95872.0,0.00726761]
[1736329841672,0.59855767,95873.0,95872.0,0.00726761]
[1736329842059,0.60055767,95873.0,95872.0,0.00726761]
[1736329842397,0.70285743,95873.0,95872.0,0.00726761]
[1736329842813,0.84496783,95873.0,95872.0,6.1e-07]
[1736329843436,0.74955743,95873.0,95872.0,6.1e-07]
[1736329843639,0.84955743,95873.0,95872.0,6.1e-07]
[1736329844437,0.373,95872.0,95871.0,8.1e-07]
[1736329844636,0.58159952,95872.0,95871.0,8.1e-07]
[1736329844836,0.48159952,95872.0,95871.0,8.1e-07]
[1736329845094,0.58159952,95872.0,95871.0,8.1e-07]
[1736329845252,0.76865019,95872.0,95871.0,8.1e-07]
[1736329845676,1.22260915,95872.0,95871.0,8.1e-07]
[1736329845873,0.561926,95865.0,95864.0,3e-07]
[1736329846098,1.09718448,95865.0,95864.0,3e-07]
[1736329846276,1.19718448,95865.0,95864.0,3e-07]
[1736329846500,0.1,95861.0,95860.0,8.53e-05]
[1736329846799,0.37860397,95861.0,95860.0,8.53e-05]
[1736329847032,0.37729976,95861.0,95860.0,8.53e-05]
[1736329847166,0.37729976,95861.0,95860.0,0.00013614]
[1736329847985,0.48159952,95861.0,95860.0,0.00013614]
[1736329849637,0.49373887,95861.0,95860.0,0.00013614]
[1736329849835,0.49473887,95861.0,95860.0,0.00013614]
[1736329850598,0.49473887,95861.0,95860.0,1.4e-07]
[1736329851311,0.82139783,95861.0,95860.0,1.4e-07]
[1736329851935,0.1,95842.0,95832.0,8.52e-05]
[1736329852137,0.358694,95834.0,95832.0,8.52e-05]
[1736329852314,0.358694,95834.0,95833.0,0.07803585]
[1736329853430,0.37079733,95834.0,95833.0,0.07803585]
[1736329854037,0.37179733,95834.0,95833.0,0.07803585]
[1736329854322,0.359694,95834.0,95833.0,0.07803585]
[1736329854629,0.359694,95834.0,95833.0,0.09073796]
[1736329855357,0.359694,95834.0,95833.0,0.07803585]
[1736329855567,0.358694,95834.0,95833.0,0.07803585]
[1736329855867,0.359694,95834.0,95833.0,0.07803585]
[1736329856160,0.001,95834.0,95833.0,0.07803585]
[1736329856366,0.41738,95836.0,95833.0,0.07803585]
[1736329856572,0.20869,95836.0,95834.0,0.01270211]
[1736329856768,0.41738,95836.0,95833.0,0.07803585]
[1736329856931,0.001,95834.0,95833.0,0.07803585]
[1736329857553,0.208694,95834.0,95833.0,0.00013585]
[1736329857873,0.39073039,95834.0,95833.0,0.00013585]
[1736329858086,0.54073039,95834.0,95833.0,0.00013585]
[1736329858758,0.47470464,95834.0,95833.0,0.00013585]
[1736329859290,0.46299376,95834.0,95833.0,0.00013585]
[1736329859493,0.358694,95834.0,95833.0,0.00013585]
[1736329859947,0.360694,95834.0,95833.0,0.00013585]
[1736329860542,0.358694,95834.0,95833.0,0.00013585]
[1736329861040,0.360694,95834.0,95833.0,0.00013585]
[1736329861493,0.360694,95834.0,95833.0,0.00771796]
[1736329861669,0.360694,95834.0,95833.0,0.07643585]
[1736329863234,0.358694,95834.0,95833.0,0.07643585]
[1736329863452,0.46499376,95834.0,95833.0,0.00013585]
[1736329864576,0.46299376,95834.0,95833.0,0.00013585]
[1736329866139,0.46499376,95834.0,95833.0,0.00013585]
[1736329866339,0.56322994,95834.0,95833.0,0.00013585]
[1736329866570,0.56122994,95834.0,95833.0,0.00013585]
[1736329866929,0.56322994,95834.0,95833.0,0.00013585]
[1736329867332,0.57552167,95834.0,95833.0,0.00013585]
[1736329867890,0.57352167,95834.0,95833.0,0.00013585]
[1736329868699,0.57770167,95834.0,95833.0,0.00013585]
[1736329869523,0.57970167,95834.0,95833.0,0.00013585]
[1736329869917,0.57770167,95834.0,95833.0,0.00013585]
[1736329870339,0.57970167,95834.0,95833.0,0.00013585]
[1736329870737,0.57770167,95834.0,95833.0,0.00013585]
[1736329871139,0.48146549,95834.0,95833.0,0.00013585]
[1736329871346,0.63166549,95834.0,95833.0,0.00013585]
[1736329871577,0.023,95826.0,95821.0,8.53e-05]
[1736329871733,0.35872,95822.0,95821.0,8.53e-05]
[1736329871929,0.46301976,95822.0,95821.0,8.53e-05]
[1736329874165,0.58837241,95822.0,95821.0,8.53e-05]
[1736329874597,0.60941195,95822.0,95821.0,8.53e-05]
[1736329874803,0.60741195,95822.0,95821.0,8.53e-05]
[1736329875200,0.60841195,95822.0,95821.0,8.53e-05]
[1736329876201,0.62071532,95822.0,95821.0,8.53e-05]
[1736329876486,0.61971532,95822.0,95821.0,8.53e-05]
[1736329876712,0.62071532,95822.0,95821.0,8.53e-05]
[1736329877335,0.49736267,95822.0,95821.0,8.53e-05]
[1736329877581,0.38075954,95822.0,95821.0,0.0784853]
[1736329877798,0.35972,95822.0,95821.0,0.0784853]
[1736329878362,0.35872,95822.0,95821.0,0.0784853]
[1736329878552,0.58601976,95822.0,95821.0,8.53e-05]
[1736329878736,0.68637241,95822.0,95821.0,8.53e-05]
[1736329879846,0.68737241,95822.0,95821.0,8.53e-05]
[1736329880480,0.68637241,95822.0,95821.0,8.53e-05]
[1736329880662,0.68737241,95822.0,95821.0,8.53e-05]
[1736329882593,0.58701976,95822.0,95821.0,8.53e-05]
[1736329883348,0.48701976,95822.0,95821.0,8.53e-05]
[1736329883549,0.48601976,95822.0,95821.0,8.53e-05]
[1736329883980,0.48701976,95822.0,95821.0,8.53e-05]
[1736329884673,0.48601976,95822.0,95821.0,8.53e-05]
[1736329885748,0.59031952,95822.0,95821.0,8.53e-05]
[1736329886114,0.59131952,95822.0,95821.0,8.53e-05]
[1736329886322,0.69131952,95822.0,95821.0,8.53e-05]
[1736329887609,0.69031952,95822.0,95821.0,8.53e-05]
[1736329888012,0.69131952,95822.0,95821.0,8.53e-05]
[1736329890307,1.01797848,95822.0,95821.0,8.53e-05]
[1736329891804,0.91367872,95822.0,95821.0,8.53e-05]
[1736329898840,0.81267872,95822.0,95821.0,8.53e-05]
[1736329899092,0.91267872,95822.0,95821.0,8.53e-05]
[1736329899299,0.91367872,95822.0,95821.0,8.53e-05]
[1736329899728,0.91267872,95822.0,95821.0,8.53e-05]
[1736329899937,0.91367872,95822.0,95821.0,8.53e-05]
[1736329900310,0.94733824,95822.0,95821.0,8.53e-05]
[1736329900530,0.94633824,95822.0,95821.0,8.53e-05]
[1736329900934,0.94733824,95822.0,95821.0,8.53e-05]
[1736329901132,0.94833824,95822.0,95821.0,8.53e-05]
[1736329902171,0.94733824,95822.0,95821.0,8.53e-05]
[1736329902458,0.94833824,95822.0,95821.0,8.53e-05]
[1736329902821,0.94833824,95822.0,95821.0,3e-07]
[1736329903447,0.97971443,95822.0,95821.0,3e-07]
[1736329904050,1.07292005,95822.0,95821.0,3e-07]
[1736329904456,0.97971443,95822.0,95821.0,3e-07]
[1736329904665,1.02541443,95822.0,95821.0,3e-07]
[1736329905304,1.16425495,95822.0,95821.0,3e-07]
[1736329905705,1.16525495,95822.0,95821.0,3e-07]
[1736329906137,1.16425495,95822.0,95821.0,3e-07]
[1736329906512,1.16525495,95822.0,95821.0,3e-07]
[1736329907318,1.02541443,95822.0,95821.0,3e-07]
[1736329907905,1.16525495,95822.0,95821.0,3e-07]
[1736329908441,1.16425495,95822.0,95821.0,3e-07]
[1736329908652,1.16525495,95822.0,95821.0,3e-07]
[1736329909058,1.02541443,95822.0,95821.0,3e-07]
[1736329909286,0.1,95812.0,95811.0,6e-07]
[1736329909414,0.42447845,95812.0,95811.0,6e-07]
[1736329909623,0.42317356,95812.0,95811.0,6e-07]
[1736329911560,0.42417356,95812.0,95811.0,6e-07]
[1736329911767,0.37829976,95812.0,95811.0,6e-07]
[1736329911977,0.38946808,95812.0,95811.0,6e-07]
[1736329914587,0.28946808,95812.0,95811.0,6e-07]
[1736329914796,0.28946808,95812.0,95811.0,0.0772006]
[1736329915016,0.26646808,95812.0,95811.0,0.0772006]
[1736329915629,0.26546808,95812.0,95811.0,0.0772006]
[1736329916086,0.26646808,95812.0,95811.0,0.0772006]
[1736329916410,0.34486249,95812.0,95811.0,0.0772006]
[1736329917324,0.34386249,95812.0,95811.0,0.0772006]
[1736329918458,0.26546808,95812.0,95811.0,0.0772006]
[1736329918658,0.26646808,95812.0,95811.0,0.0772006]
[1736329921067,0.25529976,95812.0,95811.0,0.0772006]
[1736329921958,0.25429976,95812.0,95811.0,0.0772006]
[1736329922116,0.25529976,95812.0,95811.0,0.0772006]
[1736329922499,0.25529976,95812.0,95811.0,0.07519482]
[1736329922702,0.25429976,95812.0,95811.0,0.07519482]
[1736329922906,0.25529976,95812.0,95811.0,0.07519482]
[1736329931621,0.25429976,95812.0,95811.0,0.07519482]
[1736329931819,0.29444727,95812.0,95811.0,0.07519482]
[1736329932515,0.208755,95806.0,95805.0,0.0495]
[1736329932684,0.31305476,95806.0,95805.0,0.0495]
[1736329933030,0.31305476,95806.0,95805.0,0.05946969]
[1736329935156,0.31405476,95806.0,95805.0,0.05946969]
[1736329935357,0.33470467,95806.0,95805.0,0.00996969]
[1736329936935,0.48470467,95806.0,95805.0,0.00996969]
[1736329941315,0.49641212,95806.0,95805.0,0.00996969]
[1736329944541,0.49741212,95806.0,95805.0,0.00996969]
[1736329947545,0.72190233,95806.0,95805.0,0.00996969]
[1736329948763,0.1,95802.0,95801.0,4.667e-05]
[1736329948965,0.25429976,95802.0,95801.0,4.667e-05]
[1736329949136,0.35429976,95802.0,95801.0,4.667e-05]
[1736329949360,0.25429976,95802.0,95801.0,4.667e-05]
[1736329950551,0.25417414,95802.0,95801.0,4.667e-05]
[1736329951089,0.25517414,95802.0,95801.0,4.667e-05]
[1736329952471,0.34509467,95802.0,95801.0,4.667e-05]
[1736329954222,0.1,95800.0,95799.0,0.00022553]
[1736329954454,0.3786047,95800.0,95799.0,0.00022553]
[1736329954571,0.37729976,95800.0,95799.0,0.00022553]
[1736329958252,0.37829976,95800.0,95799.0,0.00022553]
[1736329958459,0.48259952,95800.0,95799.0,0.00022553]
[1736329961598,0.37829976,95800.0,95799.0,0.00022553]
[1736329975262,0.37829976,95800.0,95799.0,5.3e-07]
[1736329975469,0.273,95795.0,95794.0,8.3e-07]
[1736329975618,0.37729976,95795.0,95794.0,8.3e-07]
[1736329976617,0.37729976,95795.0,95794.0,0.00050997]
[1736329976818,0.48159952,95795.0,95794.0,9.7e-07]
[1736329977439,0.51399445,95795.0,95794.0,9.7e-07]
[1736329977636,0.48259952,95795.0,95794.0,9.7e-07]
[1736329978279,0.49346677,95795.0,95794.0,9.7e-07]
[1736329980663,0.52485014,95795.0,95794.0,9.7e-07]
[1736329981266,0.71190081,95795.0,95794.0,9.7e-07]
[1736329981471,0.52485014,95795.0,95794.0,9.7e-07]
[1736329982048,0.52385014,95795.0,95794.0,9.7e-07]
[1736329982484,0.52485014,95795.0,95794.0,9.7e-07]
[1736329982679,0.71109626,95795.0,95794.0,9.7e-07]
[1736329982840,0.52385014,95795.0,95794.0,9.7e-07]
[1736329983329,0.52485014,95795.0,95794.0,9.7e-07]
[1736329983963,0.71109626,95795.0,95794.0,9.7e-07]
[1736329984334,0.52485014,95795.0,95794.0,9.7e-07]
[1736329984982,0.66448433,95795.0,95794.0,9.7e-07]
[1736329985961,0.52485014,95795.0,95794.0,9.7e-07]
[1736329986164,0.52485014,95795.0,95782.0,8.53e-05]
[1736329986165,0.1,95783.0,95782.0,2.7e-07]
[1736329986367,0.3538,95777.0,95776.0,5.7e-07]
[1736329986587,0.45809976,95777.0,95776.0,4.6e-07]
[1736329987591,0.7197004,95777.0,95776.0,4.6e-07]
[1736329987794,0.81275431,95777.0,95776.0,4.6e-07]
[1736329988059,0.78139896,95777.0,95776.0,4.6e-07]
[1736329988269,0.88569872,95777.0,95776.0,4.6e-07]
[1736329988558,0.79264481,95777.0,95776.0,4.6e-07]
[1736329988964,0.79264481,95777.0,95772.0,7.6e-07]
[1736329988965,0.1,95773.0,95772.0,7.6e-07]
[1736329989285,0.37860508,95773.0,95772.0,7.6e-07]
[1736329989444,0.37729976,95773.0,95772.0,7.6e-07]
[1736329989646,0.40516312,95773.0,95772.0,7.6e-07]
[1736329990296,0.40616312,95773.0,95772.0,7.6e-07]
[1736329994788,0.25529976,95773.0,95772.0,0.08170076]
[1736329995209,0.35529976,95773.0,95772.0,0.08170076]
[1736329995483,0.37829976,95773.0,95772.0,7.6e-07]
[1736329995683,0.1,95768.0,95767.0,0.07911676]
[1736329995949,0.37729976,95768.0,95767.0,0.07911676]
[1736329998231,0.37729976,95768.0,95767.0,0.01770926]
[1736329998435,0.1,95763.0,95762.0,3.6e-07]
[1736329998605,0.46664112,95763.0,95762.0,3.6e-07]
[1736329998845,0.1,95756.0,95755.0,8e-07]
[1736329999088,0.1,95756.0,95736.0,0.0817]
[1736329999089,0.173,95738.0,95736.0,0.0817]
[1736329999293,0.27860549,95738.0,95737.0,0.00015442]
[1736329999398,0.27729976,95738.0,95737.0,0.00015442]
[1736329999604,0.31502974,95738.0,95737.0,0.00015442]
[1736329999809,0.52393274,95738.0,95737.0,0.00015442]
[1736330000659,0.64459271,95738.0,95737.0,0.00015442]
[1736330001330,0.64559271,95738.0,95737.0,0.00015442]
[1736330001834,0.64459271,95738.0,95737.0,0.00015442]
[1736330002041,0.64559271,95738.0,95737.0,0.00015442]
[1736330003098,0.65689157,95738.0,95737.0,0.00015442]
[1736330007502,0.49616159,95738.0,95737.0,0.00015442]
[1736330007704,0.49616159,95738.0,95737.0,0.07130071]
[1736330007905,0.51916159,95738.0,95737.0,0.07130071]
[1736330008294,0.51816159,95738.0,95737.0,0.07130071]
[1736330010588,0.458927,95727.0,95718.0,0.046]
[1736330010705,0.67390326,95727.0,95726.0,0.01497931]
[1736330012134,0.58622676,95727.0,95726.0,0.01497931]
[1736330012579,0.58722676,95727.0,95726.0,0.01497931]
[1736330013163,0.56422676,95727.0,95726.0,0.01497931]
[1736330013363,0.58722676,95727.0,95726.0,0.01497931]
[1736330013778,0.49809652,95727.0,95726.0,0.01497931]
[1736330013986,0.47509652,95727.0,95726.0,0.01497931]
[1736330014439,0.47409652,95727.0,95726.0,0.01497931]
[1736330014607,0.47509652,95727.0,95726.0,0.01497931]
[1736330014827,0.359927,95727.0,95726.0,0.13987931]
[1736330015464,0.001,95727.0,95726.0,0.13987931]
[1736330015664,0.208893,95743.0,95728.0,0.077]
[1736330016070,0.208894,95742.0,95728.0,0.077]
[1736330016486,0.208894,95742.0,95729.0,0.0451]
[1736330016693,0.208894,95742.0,95730.0,0.09390393]
[1736330017829,0.208918,95731.0,95730.0,0.0825]
[1736330018464,0.31321776,95731.0,95730.0,0.0825]
[1736330019390,0.46321776,95731.0,95730.0,0.0845]
[1736330019867,0.46321776,95731.0,95730.0,0.0825]
[1736330020273,0.208906,95737.0,95730.0,0.0825]
[1736330021346,0.208906,95737.0,95730.0,0.0835]
[1736330021347,0.208917,95732.0,95730.0,0.0835]
[1736330021546,0.10429976,95731.0,95730.0,0.0835]
[1736330021902,0.10429976,95731.0,95730.0,0.0825]
[1736330022105,0.10429976,95731.0,95730.0,0.0835]
[1736330022639,0.10429976,95731.0,95730.0,0.0825]
[1736330023125,0.10429976,95731.0,95730.0,0.09188136]
[1736330023538,0.10529976,95731.0,95730.0,0.09188136]
[1736330024317,0.001,95731.0,95730.0,0.10707743]
[1736330024517,0.001,95731.0,95730.0,0.09188136]
[1736330024800,0.151,95731.0,95730.0,0.09188136]
[1736330024984,0.15,95731.0,95730.0,0.09188136]
[1736330026776,0.2198281,95737.0,95730.0,0.09188136]
[1736330027544,0.20891,95735.0,95730.0,0.10707743]
[1736330029416,0.20891,95735.0,95730.0,0.10907743]
[1736330032572,0.0109221,95737.0,95730.0,0.10907743]
[1736330032719,0.0109221,95737.0,95730.0,0.09388136]
[1736330032930,0.417781,95744.0,95731.0,0.05408]
[1736330033130,0.15,95743.0,95731.0,0.05408]
[1736330033338,0.208894,95742.0,95731.0,0.05408]
[1736330033519,0.15,95743.0,95731.0,0.09577727]
[1736330033873,0.208894,95742.0,95731.0,0.09577727]
[1736330034713,0.208894,95742.0,95732.0,0.0832]
[1736330036343,0.208866,95755.0,95734.0,0.0781]
[1736330036550,0.208888,95745.0,95734.0,0.0781]
[1736330037863,0.208888,95745.0,95735.0,0.047]
[1736330038062,0.208888,95745.0,95736.0,0.0781]
[1736330038585,0.208901,95739.0,95736.0,0.0781]
[1736330038783,0.208901,95739.0,95737.0,0.05408]
[1736330040190,0.208901,95739.0,95737.0,0.05608]
[1736330042715,0.208901,95739.0,95737.0,0.002]
[1736330043070,0.208901,95739.0,95737.0,0.05608]
[1736330045432,0.20889,95744.0,95737.0,0.05608]
[1736330045791,0.20889,95744.0,95737.0,0.07513614]
[1736330046170,0.20889,95744.0,95737.0,0.07313614]
[1736330046573,0.20889,95744.0,95737.0,0.07513614]
[1736330048075,0.20889,95744.0,95738.0,0.08]
[1736330048277,0.15,95747.0,95738.0,0.08]
[1736330048488,0.208886,95746.0,95739.0,0.02021361]
[1736330048886,0.208867,95755.0,95739.0,0.02021361]
[1736330049087,0.208867,95755.0,95742.0,0.0474]
[1736330049298,0.208867,95755.0,95743.0,0.08]
[1736330049299,0.15,95754.0,95743.0,0.08]
[1736330049515,0.15,95754.0,95744.0,0.20889]
[1736330049721,0.15,95754.0,95745.0,0.0824]
[1736330049928,0.15,95754.0,95745.0,0.03716665]
[1736330050069,0.15,95754.0,95746.0,0.0824]
[1736330051181,0.15,95754.0,95747.0,0.05428]
[1736330051779,0.208862,95757.0,95747.0,0.05428]
[1736330052056,0.15,95754.0,95747.0,0.05428]
[1736330052203,0.15,95754.0,95748.0,0.01905614]
[1736330052627,0.208866,95755.0,95748.0,0.01905614]
[1736330053016,0.1,95791.0,95748.0,0.01905614]
[1736330053017,0.208842,95766.0,95752.0,0.0803]
[1736330053416,0.15,95765.0,95752.0,0.0803]
[1736330054315,0.15,95765.0,95753.0,0.20887]
[1736330054516,0.15,95767.0,95756.0,0.0797]
[1736330054721,0.15,95767.0,95759.0,0.0797]
[1736330055510,0.208835,95770.0,95759.0,0.0797]
[1736330055774,0.001,95765.0,95759.0,0.0797]
[1736330056010,0.001,95765.0,95760.0,0.05428]
[1736330056213,0.001,95765.0,95761.0,0.02215498]
[1736330056418,0.15,95767.0,95761.0,0.02215498]
[1736330056945,0.20892506,95770.0,95763.0,0.0483]
[1736330056946,9.006e-05,95770.0,95763.0,0.0483]
[1736330057122,9.006e-05,95770.0,95764.0,0.0759]
[1736330060452,9.006e-05,95770.0,95767.0,0.20884]
[1736330060685,9.006e-05,95770.0,95768.0,0.10188142]
[1736330060945,9.006e-05,95770.0,95769.0,0.284235]
[1736330063522,9.006e-05,95770.0,95769.0,0.286235]
[1736330063931,0.0001706,95776.0,95775.0,0.1249]
[1736330064144,0.0001706,95776.0,95775.0,0.22919976]
[1736330064344,0.0001706,95776.0,95775.0,0.25035474]
[1736330065794,0.0001706,95776.0,95775.0,0.25235474]
[1736330066218,0.0001706,95776.0,95775.0,0.14605498]
[1736330066419,0.0001706,95776.0,95775.0,0.17814]
[1736330066619,0.0001706,95776.0,95775.0,0.13694]
[1736330067218,0.0001706,95776.0,95775.0,0.13294]
[1736330068747,0.0001706,95776.0,95775.0,0.05824]
[1736330069273,0.0001706,95776.0,95775.0,0.05424]
[1736330069668,0.0001706,95776.0,95775.0,0.05624]
[1736330070903,0.0001706,95776.0,95775.0,0.069774]
[1736330075303,0.0011706,95776.0,95775.0,0.069774]
[1736330077331,0.0011706,95776.0,95775.0,0.151374]
[1736330081518,0.20833486,95784.0,95775.0,0.151374]
[1736330082489,0.20833486,95784.0,95775.0,0.149374]
[1736330082689,0.20833486,95784.0,95776.0,0.0358201]
[1736330083053,0.208789,95791.0,95776.0,0.2446381]
[1736330083431,0.208789,95791.0,95776.0,0.4534581]
[1736330085707,0.208789,95791.0,95776.0,0.2446381]
[1736330086097,0.417578,95791.0,95776.0,0.2446381]
[1736330086313,0.417578,95791.0,95777.0,0.0270823]
[1736330089198,0.417578,95791.0,95777.0,0.0280823]
[1736330089805,0.417578,95791.0,95777.0,0.0270823]
[1736330089947,0.418578,95791.0,95777.0,0.0270823]
[1736330090153,0.418578,95791.0,95777.0,0.0280823]
[1736330090373,0.418578,95791.0,95778.0,0.013534]
[1736330093193,0.418578,95791.0,95778.0,0.014534]
[1736330095061,0.208797,95787.0,95778.0,0.014534]
[1736330096124,0.208797,95787.0,95778.0,0.013534]
[1736330096616,0.208797,95787.0,95778.0,0.014534]
[1736330096841,0.208797,95787.0,95779.0,0.0358201]
[1736330099607,0.208797,95787.0,95779.0,0.0368201]
[1736330100392,0.208806,95783.0,95779.0,0.001]
[1736330100594,0.023,95782.0,95779.0,0.001]
[1736330100801,0.023,95780.0,95779.0,0.001]
[1736330101402,0.023,95778.0,95774.0,0.0544]
[1736330101633,0.023,95776.0,95763.0,0.0818]
[1736330101880,0.208841,95767.0,95764.0,0.06727]
[1736330102461,0.208841,95767.0,95765.0,0.0544]
[1736330103448,0.208831,95771.0,95765.0,0.0544]
[1736330104074,0.208831,95771.0,95765.0,0.0564]
[1736330104462,0.023,95772.0,95765.0,0.0544]
[1736330104662,0.023,95772.0,95763.0,0.0818]
[1736330104928,0.0228607,95772.0,95766.0,0.0544]
[1736330105305,0.208817,95778.0,95766.0,0.0544]
[1736330105534,0.417619,95781.0,95767.0,0.20884]
[1736330106155,0.417619,95781.0,95766.0,0.0544]
[1736330106558,0.208809,95781.0,95767.0,0.20884]
[1736330106761,0.209809,95781.0,95768.0,0.1117808]
[1736330107101,0.023,95780.0,95768.0,0.1117808]
[1736330107309,0.208814,95779.0,95768.0,0.1117808]
[1736330107751,0.209809,95781.0,95769.0,0.208835]
[1736330108645,0.209809,95781.0,95770.0,0.0481]
[1736330108845,0.209809,95781.0,95771.0,0.0437556]
[1736330109047,0.208809,95781.0,95771.0,0.0437556]
[1736330109691,0.173,95785.0,95772.0,0.208829]
[1736330109962,0.209789,95791.0,95777.0,0.208817]
[1736330110137,0.209789,95791.0,95778.0,0.0791]
[1736330110337,0.209789,95791.0,95779.0,0.0287917]
[1736330110521,0.418578,95791.0,95779.0,0.0287917]
[1736330113185,0.418578,95791.0,95780.0,0.0101984]
[1736330113391,0.210789,95791.0,95780.0,0.0101984]
[1736330113538,0.208798,95787.0,95780.0,0.0101984]
[1736330113715,0.208798,95787.0,95781.0,0.03269141]
[1736330114643,0.209789,95791.0,95781.0,0.03269141]
[1736330115028,0.209789,95791.0,95781.0,0.03369141]
[1736330116160,0.418578,95791.0,95781.0,0.03369141]
[1736330116385,0.418578,95791.0,95781.0,0.03269141]
[1736330116563,0.418578,95791.0,95782.0,0.01329207]
[1736330117637,0.001,95791.0,95782.0,0.01329207]
[1736330117848,0.001,95791.0,95783.0,0.1218]
[1736330118265,0.001,95791.0,95784.0,0.208803]
[1736330118495,0.001,95791.0,95786.0,0.208798]
[1736330118670,0.001,95791.0,95787.0,0.03045292]
[1736330118984,0.001,95791.0,95789.0,0.0784]
[1736330119600,0.001,95791.0,95790.0,0.20879]
[1736330119806,0.001,95791.0,95789.0,0.0784]
[1736330120615,0.001,95791.0,95789.0,0.28719]
[1736330120810,0.001,95791.0,95790.0,0.03369141]
[1736330121450,0.001,95791.0,95790.0,0.03269141]
[1736330123669,0.001,95791.0,95790.0,0.03569141]
[1736330129207,0.00087433,95791.0,95790.0,0.03569141]
[1736330132962,0.00087433,95791.0,95790.0,0.05696]
[1736330133190,0.0021792,95791.0,95790.0,0.003]
[1736330133408,0.1063792,95791.0,95790.0,0.003]
[1736330133593,0.37154779,95791.0,95790.0,0.003]
[1736330133791,0.37024292,95791.0,95790.0,0.003]
[1736330133993,0.231805,95783.0,95782.0,0.05396]
[1736330136153,0.231805,95783.0,95782.0,0.05496]
[1736330141887,0.231805,95783.0,95782.0,0.06147584]
[1736330142095,0.208801,95785.0,95782.0,0.06147584]
[1736330142299,0.417602,95785.0,95782.0,0.06147584]
[1736330142686,0.208801,95785.0,95782.0,0.06147584]
[1736330143098,0.417602,95785.0,95782.0,0.06047584]